lending/lending_fUSD_20241005
["ID","MTS","AMOUNT","RATE_DAILY","PERIOD"]
[339903254,1728147136291,-500.0,0.00040821,30]
[339903255,1728147136301,-895.17,0.00040821,30]
[339903256,1728147136311,-538.69,0.00040821,30]
[339903257,1728147136320,-716.85,0.00040821,30]
[339903258,1728147136329,-500.0,0.00040821,30]
[339903259,1728147136338,-500.0,0.00040821,30]
[339903260,1728147136349,-500.0,0.00040821,30]
[339903261,1728147136359,-500.0,0.00040821,30]
[339903262,1728147136368,-500.0,0.00040821,30]
[339903263,1728147136378,-734.46,0.00040821,30]
[339903264,1728147136386,-500.0,0.00040821,30]
[339903265,1728147136397,-500.0,0.00040821,30]
[339903266,1728147136405,-744.23,0.00040821,30]
[339903267,1728147136415,-628.16863918,0.00040821,30]
[339903268,1728147136425,-500.0,0.00040821,30]
[339903269,1728147136435,-1043.16,0.00040821,30]
[339903270,1728147136445,-544.13,0.00040821,30]
[339903271,1728147136454,-649.58,0.00040821,30]
[339903272,1728147136464,-526.24,0.00040821,30]
[339903273,1728147136473,-500.0,0.00040821,30]
[339903274,1728147136482,-837.39,0.00040821,30]
[339903275,1728147136491,-500.0,0.00040821,30]
[339903276,1728147136500,-500.0,0.00040821,30]
[339903277,1728147136509,-1194.16,0.00040821,30]
[339903278,1728147136518,-500.0,0.00040821,30]
[339903279,1728147136527,-500.0,0.00040821,30]
[339903280,1728147136536,-500.0,0.00040821,30]
[339903281,1728147136546,-612.42,0.00040821,30]
[339903282,1728147136555,-510.48,0.00040821,30]
[339903283,1728147136564,-1245.75,0.00040821,30]
[339903284,1728147136573,-500.0,0.00040821,30]
[339903285,1728147136582,-896.41,0.00040821,30]
[339903286,1728147136592,-912.71,0.00040821,30]
[339903287,1728147136601,-570.6,0.00040821,30]
[339903288,1728147136611,-549.18564761,0.00040821,30]
[339903289,1728147136620,-500.0,0.00040821,30]
[339903290,1728147136629,-935.17,0.00040821,30]
[339903291,1728147136639,-500.0,0.00040821,30]
[339903292,1728147136649,-1275.76,0.00040821,30]
[339903293,1728147136658,-500.18,0.00040821,30]
[339903294,1728147136667,-500.0,0.00040821,30]
[339903295,1728147136677,-500.0,0.00040821,30]
[339903296,1728147136686,-500.0,0.00040821,30]
[339903297,1728147136695,-712.54,0.00040821,30]
[339903298,1728147136705,-500.0,0.00040821,30]
[339903299,1728147136715,-713.19,0.00040821,30]
[339903300,1728147136724,-645.72,0.00040821,30]
[339903301,1728147136734,-1057.7,0.00040821,30]
[339903302,1728147136743,-749.26,0.00040821,30]
[339903303,1728147136751,-500.0,0.00040821,30]
[339903304,1728147136762,-1037.04,0.00040821,30]
[339903305,1728147136774,-500.0,0.00040821,30]
[339903306,1728147136786,-688.31,0.00040821,30]
[339903307,1728147136799,-700.86,0.00040821,30]
[339903308,1728147136811,-997.54,0.00040821,30]
[339903309,1728147136824,-534.2,0.00040821,30]
[339903310,1728147136835,-500.0,0.00040821,30]
[339903311,1728147136846,-607.13,0.00040821,30]
[339903312,1728147136858,-500.98,0.00040821,30]
[339903313,1728147136870,-394.35,0.00040821,30]
[339903314,1728147136881,-500.0,0.00040821,30]
[339903315,1728147136892,-1204.65,0.00040821,30]
[339903316,1728147136904,-500.0,0.00040821,30]
[339903317,1728147136916,-542.57,0.00040821,30]
[339903318,1728147136928,-539.24,0.00040821,30]
[339903319,1728147136939,-587.50399078,0.00040821,30]
[339903320,1728147136950,-500.0,0.00040821,30]
[339903321,1728147136962,-1294.2,0.00040821,30]
[339903322,1728147136975,-6114.95,0.00040821,30]
[339903323,1728147136987,-610.97,0.00040821,30]
[339903324,1728147136999,-500.0,0.00040821,30]
[339903325,1728147137012,-1197.02,0.00040821,30]
[339903326,1728147137031,-500.0,0.00040821,30]
[339903327,1728147137042,-500.0,0.00040821,30]
[339903328,1728147137052,-801.24,0.00040821,30]
[339903329,1728147137063,-500.0,0.00040821,30]
[339903330,1728147137075,-533.72,0.00040821,30]
[339903331,1728147137086,-500.0,0.00040821,30]
[339903332,1728147137097,-500.0,0.00040821,30]
[339903333,1728147137108,-973.61,0.00040821,30]
[339903334,1728147137118,-743.21,0.00040821,30]
[339903335,1728147137128,-1102.84,0.00040821,30]
[339903336,1728147137139,-616.19,0.00040821,30]
[339903337,1728147137150,-500.0,0.00040821,30]
[339903338,1728147137160,-500.0,0.00040821,30]
[339903339,1728147137173,-500.0,0.00040821,30]
[339903340,1728147137185,-500.0,0.00040821,30]
[339903341,1728147137197,-1463.87,0.00040821,30]
[339903342,1728147137209,-500.0,0.00040821,30]
[339903343,1728147137220,-603.49,0.00040821,30]
[339903344,1728147137236,-583.51,0.00040821,30]
[339903345,1728147137249,-500.0,0.00040821,30]
[339903346,1728147137264,-652.66,0.00040821,30]
[339903347,1728147137276,-500.0,0.00040821,30]
[339903348,1728147137288,-857.16,0.00040821,30]
[339903349,1728147137298,-500.0,0.00040821,30]
[339903350,1728147137308,-500.0,0.00040821,30]
[339903351,1728147137319,-500.0,0.00040821,30]
[339903352,1728147137329,-1257.63,0.00040821,30]
[339903353,1728147137340,-500.0,0.00040821,30]
[339903354,1728147137353,-500.0,0.00040821,30]
[339903355,1728147137365,-500.0,0.00040821,30]
[339903356,1728147137377,-1523.37,0.00040821,30]
[339903357,1728147137390,-730.24,0.00040821,30]
[339903358,1728147137401,-500.0,0.00040821,30]
[339903359,1728147137413,-847.59,0.00040821,30]
[339903360,1728147137429,-500.0,0.00040821,30]
[339903361,1728147137441,-500.0,0.00040821,30]
[339903362,1728147137453,-500.0,0.00040821,30]
[339903363,1728147137467,-500.0,0.00040821,30]
[339903364,1728147137478,-642.17898241,0.00040821,30]
[339903365,1728147137489,-708.16,0.00040821,30]
[339903366,1728147137499,-500.0,0.00040821,30]
[339903367,1728147137514,-500.0,0.00040821,30]
[339903368,1728147137529,-500.0,0.00040821,30]
[339903369,1728147137539,-500.0,0.00040821,30]
[339903370,1728147137552,-1110.69,0.00040821,30]
[339903371,1728147137563,-734.55,0.00040821,30]
[339903372,1728147137574,-500.0,0.00040821,21]
[339903373,1728147137586,-500.0,0.00040821,30]
[339903374,1728147137598,-500.0,0.00040821,30]
[339903375,1728147137609,-500.0,0.00040821,30]
[339903376,1728147137620,-473.98960071,0.00040821,30]
[339903377,1728147137632,-1207.12,0.00040821,30]
[339903378,1728147137644,-500.0,0.00040821,30]
[339903379,1728147137656,-621.54,0.00040821,30]
[339903380,1728147137669,-1418.21,0.00040821,30]
[339903381,1728147137682,-500.0,0.00040821,30]
[339903382,1728147137694,-500.0,0.00040821,30]
[339903383,1728147137707,-1713.6,0.00040821,30]
[339903384,1728147137719,-596.62,0.00040821,30]
[339903385,1728147137731,-500.0,0.00040821,120]
[339903386,1728147137743,-500.0,0.00040821,30]
[339903387,1728147137755,-1763.97,0.00040821,30]
[339903388,1728147137774,-516.8,0.00040821,30]
[339903389,1728147137786,-500.0,0.00040821,30]
[339903390,1728147137798,-500.0,0.00040821,30]
[339903391,1728147137810,-520.32,0.00040821,30]
[339903392,1728147137822,-500.0,0.00040821,30]
[339903393,1728147137831,-502.48755387,0.00040821,30]
[339903394,1728147137841,-500.0,0.00040821,30]
[339903395,1728147137852,-1374.93,0.00040821,30]
[339903396,1728147137864,-500.0,0.00040821,30]
[339903397,1728147137876,-814.88,0.00040821,30]
[339903398,1728147137888,-828.2,0.00040821,30]
[339903399,1728147137900,-500.0,0.00040821,30]
[339903400,1728147137910,-1238.46,0.00040821,30]
[339903401,1728147137923,-504.42029187,0.00040821,30]
[339903402,1728147137934,-500.0,0.00040821,30]
[339903403,1728147137946,-500.0,0.00040821,30]
[339903404,1728147137957,-904.62,0.00040821,30]
[339903405,1728147137968,-500.0,0.00040821,30]
[339903406,1728147137985,-629.14,0.00040821,30]
[339903407,1728147137997,-500.0,0.00040821,30]
[339903408,1728147138009,-1015.81,0.00040821,30]
[339903409,1728147138021,-934.77,0.00040821,30]
[339903410,1728147138031,-500.0,0.00040821,7]
[339903411,1728147138043,-500.0,0.00040821,30]
[339903412,1728147138054,-1120.82,0.00040821,30]
[339903413,1728147138065,-790.26,0.00040821,30]
[339903414,1728147138076,-803.58,0.00040821,30]
[339903415,1728147138088,-230.75532703,0.00040821,30]
[339903416,1728147138099,-500.0,0.00040821,30]
[339903417,1728147138110,-617.73,0.00040821,30]
[339903418,1728147138121,-500.0,0.00040821,30]
[339903419,1728147138132,-500.0,0.00040821,30]
[339903420,1728147138143,-500.0,0.00040821,30]
[339903421,1728147138154,-500.0,0.00040821,30]
[339903422,1728147138166,-816.66,0.00040821,30]
[339903423,1728147138177,-500.0,0.00040821,2]
[339903424,1728147138188,-1440.54,0.00040821,30]
[339903425,1728147138199,-1168.27,0.00040821,30]
[339903426,1728147138210,-684.57,0.00040821,30]
[339903427,1728147138221,-500.0,0.00040821,30]
[339903428,1728147138232,-500.0,0.00040821,30]
[339903429,1728147138244,-501.94477822,0.00040821,30]
[339903430,1728147138255,-1163.33,0.00040821,30]
[339903431,1728147138268,-886.94,0.00040821,30]
[339903432,1728147138280,-790.06,0.00040821,30]
[339903433,1728147138291,-500.0,0.00040821,30]
[339903434,1728147138302,-500.0,0.00040821,30]
[339903435,1728147138313,-1783.85,0.00040821,30]
[339903436,1728147138325,-1108.4,0.00040821,30]
[339903437,1728147138336,-500.0,0.00040821,30]
[339903438,1728147138349,-228.10066,0.000409,30]
[339903439,1728147138361,-5505.3142297,0.00040972,2]
[339903440,1728147138373,-12100.8580074,0.00040972,2]
[339903441,1728147138385,-443.48370958,0.00040982,120]
[339903442,1728147138396,-1404.31028826,0.00040982,120]
[339903443,1728147138408,-50000.0,0.00041,31]
[339903444,1728147138418,-50000.0,0.00041,41]
[339903445,1728147138431,-506.01327798,0.00041,120]
[339903446,1728147138442,-10289.0,0.00041,2]
[339903447,1728147138453,-20000.0,0.00041,60]
[339903448,1728147138465,-364.7784737,0.00041095,120]
[339903449,1728147138477,-515.63347682,0.00041095,30]
[339903450,1728147138488,-1317.37686055,0.00041095,60]
[339903451,1728147138500,-500.0,0.00041095,30]
[339903452,1728147138514,-500.0,0.00041095,30]
[339903453,1728147138525,-500.0,0.00041095,30]
[339903454,1728147138536,-500.0,0.00041095,30]
[339903455,1728147138548,-500.0,0.00041095,30]
[339903456,1728147138560,-500.0,0.00041095,30]
[339903457,1728147138572,-500.0,0.00041095,30]
[339903458,1728147138584,-679.38,0.00041096,2]
[339903459,1728147138596,-157.0,0.00041096,2]
[339903460,1728147138607,-1000.0,0.00041096,120]
[339903461,1728147138619,-152.04,0.00041123,30]
[339903462,1728147138631,-252.27822,0.000412,120]
[339903463,1728147138643,-668.66,0.00041232,120]
[339903464,1728147138655,-1684.72,0.00041232,120]
[339903465,1728147138667,-500.0,0.00041232,120]
[339903466,1728147138678,-500.0,0.00041232,120]
[339903467,1728147138690,-500.0,0.00041232,120]
[339903468,1728147138701,-500.0,0.00041232,120]
[339903469,1728147138713,-500.0,0.00041232,120]
[339903470,1728147138724,-500.0,0.00041232,120]
[339903471,1728147138736,-500.0,0.00041232,120]
[339903472,1728147138748,-500.0,0.00041232,120]
[339903473,1728147138761,-500.0,0.00041232,120]
[339903474,1728147138773,-500.0,0.00041232,120]
[339903475,1728147138784,-500.0,0.00041232,120]
[339903476,1728147138795,-500.0,0.00041232,120]
[339903477,1728147138807,-500.0,0.00041232,120]
[339903478,1728147138818,-500.0,0.00041232,120]
[339903479,1728147138829,-390.65942216,0.00041232,120]
[339903480,1728147138841,-500.0,0.00041232,120]
[339903481,1728147138852,-150.0,0.00041232,120]
[339903482,1728147138863,-500.0,0.00041232,120]
[339903483,1728147138875,-1155.52,0.00041232,120]
[339903484,1728147138886,-1004.11,0.00041232,120]
[339903485,1728147138898,-869.62,0.00041232,120]
[339903486,1728147138909,-500.0,0.00041232,120]
[339903487,1728147138920,-500.0,0.00041232,120]
[339903488,1728147138930,-577.41,0.00041232,120]
[339903489,1728147138941,-1420.73,0.00041232,120]
[339903490,1728147138953,-500.0,0.00041232,120]
[339903491,1728147138964,-547.3,0.00041232,120]
[339903492,1728147138974,-500.0,0.00041232,120]
[339903493,1728147138985,-548.25,0.00041232,120]
[339903494,1728147138997,-500.0,0.00041232,120]
[339903495,1728147139009,-500.0,0.00041232,120]
[339903496,1728147139020,-500.0,0.00041232,120]
[339903497,1728147139030,-634.58,0.00041232,120]
[339903498,1728147139041,-500.0,0.00041232,120]
[339903499,1728147139051,-593.12,0.00041232,120]
[339903500,1728147139062,-500.0,0.00041232,120]
[339903501,1728147139072,-529.51,0.00041232,120]
[339903502,1728147139083,-1227.07,0.00041232,120]
[339903503,1728147139094,-518.44,0.00041232,120]
[339903504,1728147139105,-500.0,0.00041232,120]
[339903505,1728147139115,-907.64,0.00041232,120]
[339903506,1728147139126,-500.0,0.00041232,120]
[339903507,1728147139136,-500.0,0.00041232,120]
[339903508,1728147139147,-500.0,0.00041232,120]
[339903509,1728147139157,-500.0,0.00041232,120]
[339903510,1728147139168,-554.067999,0.00041232,120]
[339903511,1728147139178,-500.0,0.00041232,120]
[339903512,1728147139188,-500.0,0.00041232,120]
[339903513,1728147139199,-500.0,0.00041232,120]
[339903514,1728147139210,-500.0,0.00041232,120]
[339903515,1728147139221,-780.76,0.00041232,120]
[339903516,1728147139232,-500.0,0.00041232,120]
[339903517,1728147139242,-500.0,0.00041232,120]
[339903518,1728147139253,-1092.02,0.00041232,120]
[339903519,1728147139266,-1147.66,0.00041232,120]
[339903520,1728147139277,-500.0,0.00041232,7]
[339903521,1728147139288,-500.0,0.00041232,120]
[339903522,1728147139300,-504.66562815,0.00041232,120]
[339903523,1728147139311,-500.0,0.00041232,120]
[339903524,1728147139323,-500.0,0.00041232,120]
[339903525,1728147139334,-500.0,0.00041232,120]
[339903526,1728147139346,-500.0,0.00041232,120]
[339903527,1728147139357,-500.0,0.00041232,120]
[339903528,1728147139371,-605.99,0.00041232,120]
[339903529,1728147139382,-500.0,0.00041232,120]
[339903530,1728147139393,-500.0,0.00041232,120]
[339903531,1728147139405,-500.0,0.00041232,120]
[339903532,1728147139415,-959.8,0.00041232,120]
[339903533,1728147139426,-597.47,0.00041232,120]
[339903534,1728147139436,-500.0,0.00041232,120]
[339903535,1728147139447,-500.0,0.00041232,120]
[339903536,1728147139459,-500.0,0.00041232,120]
[339903537,1728147139470,-500.0,0.00041232,120]
[339903538,1728147139482,-200.0,0.00041232,7]
[339903539,1728147139493,-500.0,0.00041232,120]
[339903540,1728147139504,-500.0,0.00041232,120]
[339903541,1728147139519,-500.0,0.00041232,120]
[339903542,1728147139529,-500.0,0.00041232,120]
[339903543,1728147139540,-500.0,0.00041232,120]
[339903544,1728147139551,-1254.87,0.00041232,120]
[339903545,1728147139562,-500.0,0.00041232,120]
[339903546,1728147139574,-500.0,0.00041232,120]
[339903547,1728147139586,-500.0,0.00041232,120]
[339903548,1728147139597,-1340.11,0.00041232,120]
[339903549,1728147139607,-500.0,0.00041232,120]
[339903550,1728147139618,-500.0,0.00041232,120]
[339903551,1728147139629,-1185.33,0.00041232,120]
[339903552,1728147139641,-500.0,0.00041232,120]
[339903553,1728147139651,-500.0,0.00041232,120]
[339903554,1728147139662,-1060.42,0.00041232,120]
[339903555,1728147139673,-500.0,0.00041232,120]
[339903556,1728147139684,-1130.0,0.00041232,120]
[339903557,1728147139696,-952.13,0.00041232,120]
[339903558,1728147139707,-500.0,0.00041232,120]
[339903559,1728147139718,-865.66,0.00041232,120]
[339903560,1728147139728,-996.76,0.00041232,120]
[339903561,1728147139740,-1128.68,0.00041232,120]
[339903562,1728147139752,-585.41,0.00041232,120]
[339903563,1728147139765,-1208.3,0.00041232,120]
[339903564,1728147139775,-500.0,0.00041232,120]
[339903565,1728147139787,-500.0,0.00041232,120]
[339903566,1728147139798,-999.01,0.00041232,120]
[339903567,1728147139809,-500.0,0.00041232,120]
[339903568,1728147139820,-508.91,0.00041232,120]
[339903569,1728147139831,-500.0,0.00041232,120]
[339903570,1728147139842,-868.76,0.00041232,120]
[339903571,1728147139853,-1096.8,0.00041232,120]
[339903572,1728147139863,-500.0,0.00041232,120]
[339903573,1728147139875,-613.51,0.00041232,120]
[339903574,1728147139886,-930.7,0.00041232,120]
[339903575,1728147139897,-500.0,0.00041232,120]
[339903576,1728147139908,-1272.74,0.00041232,120]
[339903577,1728147139919,-646.65,0.00041232,120]
[339903578,1728147139929,-504.49,0.00041232,120]
[339903579,1728147139940,-937.71,0.00041232,120]
[339903580,1728147139951,-845.63,0.00041232,120]
[339903581,1728147139962,-500.0,0.00041232,120]
[339903582,1728147139972,-1381.8,0.00041232,120]
[339903583,1728147139983,-500.0,0.00041232,120]
[339903584,1728147139993,-506.8986811,0.00041232,120]
[339903585,1728147140003,-500.0,0.00041232,120]
[339903586,1728147140015,-500.0,0.00041232,120]
[339903587,1728147140026,-500.0,0.00041232,120]
[339903588,1728147140036,-741.0,0.00041232,120]
[339903589,1728147140046,-500.0,0.00041232,120]
[339903590,1728147140057,-982.24,0.00041232,120]
[339903591,1728147140067,-500.0,0.00041232,120]
[339903592,1728147140077,-1105.62,0.00041232,120]
[339903593,1728147140087,-206.52054452,0.00041232,120]
[339903594,1728147140097,-500.0,0.00041232,120]
[339903595,1728147140107,-500.0,0.00041232,120]
[339903596,1728147140118,-284.92218211,0.00041232,120]
[339903597,1728147140128,-877.47,0.00041232,120]
[339903598,1728147140138,-289.39831527,0.00041232,120]
[339903599,1728147140148,-500.0,0.00041232,120]
[339903600,1728147140159,-395.19473932,0.00041232,120]
[339903601,1728147140170,-994.36,0.00041232,120]
[339903602,1728147140180,-500.0,0.00041232,120]
[339903603,1728147140190,-1035.51,0.00041232,120]
[339903604,1728147140200,-500.0,0.00041232,120]
[339903605,1728147140210,-500.0,0.00041232,120]
[339903606,1728147140220,-989.87,0.00041232,120]
[339903607,1728147140230,-500.0,0.00041232,120]
[339903608,1728147140241,-500.0,0.00041232,120]
[339903609,1728147140252,-871.55,0.00041232,120]
[339903610,1728147140264,-1333.03,0.00041232,120]
[339903611,1728147140282,-925.19,0.00041232,120]
[339903612,1728147140291,-500.0,0.00041232,120]
[339903613,1728147140304,-500.0,0.00041232,120]
[339903614,1728147140314,-889.77,0.00041232,120]
[339903615,1728147140324,-1502.02,0.00041232,120]
[339903616,1728147140335,-600.24,0.00041232,120]
[339903617,1728147140345,-717.54,0.00041232,120]
[339903618,1728147140355,-963.18,0.00041232,120]
[339903619,1728147140369,-500.0,0.00041232,5]
[339903620,1728147140379,-551.7,0.00041232,120]
[339903621,1728147140390,-1246.88,0.00041232,120]
[339903622,1728147140401,-584.17,0.00041232,120]
[339903623,1728147140412,-518.72,0.00041232,120]
[339903624,1728147140422,-500.0,0.00041232,120]
[339903625,1728147140434,-500.0,0.00041232,120]
[339903626,1728147140444,-1465.78,0.00041232,120]
[339903627,1728147140959,-500.0,0.00041232,120]
[339903628,1728147140988,-1472.61,0.00041232,120]
[339903629,1728147141007,-500.0,0.00041232,120]
[339903630,1728147141017,-848.55,0.00041232,120]
[339903631,1728147141027,-500.0,0.00041232,120]
[339903632,1728147141036,-500.0,0.00041232,120]
[339903633,1728147141045,-779.41,0.00041232,120]
[339903634,1728147141054,-504.58357977,0.00041232,120]
[339903635,1728147141064,-500.0,0.00041232,120]
[339903636,1728147141074,-500.0,0.00041232,120]
[339903637,1728147141083,-777.28,0.00041232,120]
[339903638,1728147141093,-500.0,0.00041232,120]
[339903639,1728147141102,-500.0,0.00041232,120]
[339903640,1728147141112,-1683.21,0.00041232,120]
[339903641,1728147141122,-1078.6,0.00041232,120]
[339903642,1728147141131,-1725.49,0.00041232,120]
[339903643,1728147141141,-587.6,0.00041232,120]
[339903644,1728147141151,-659.83,0.00041232,120]
[339903645,1728147141161,-600.74,0.00041232,120]
[339903646,1728147141170,-500.0,0.00041232,120]
[339903647,1728147141180,-706.43,0.00041232,120]
[339903648,1728147141189,-1054.81,0.00041232,120]
[339903649,1728147141198,-500.0,0.00041232,120]
[339903650,1728147141208,-500.0,0.00041232,120]
[339903651,1728147141218,-500.0,0.00041232,120]
[339903652,1728147141227,-1280.81,0.00041232,120]
[339903653,1728147141237,-500.0,0.00041232,120]
[339903654,1728147141247,-1363.15,0.00041232,120]
[339903655,1728147141256,-500.0,0.00041232,120]
[339903656,1728147141268,-500.0,0.00041232,120]
[339903657,1728147141278,-500.0,0.00041232,120]
[339903658,1728147141287,-500.0,0.00041232,120]
[339903659,1728147141297,-905.57,0.00041232,120]
[339903660,1728147141307,-500.0,0.00041232,120]
[339903661,1728147141318,-1235.27,0.00041232,120]
[339903662,1728147141329,-1284.12,0.00041232,120]
[339903663,1728147141342,-637.05,0.00041232,120]
[339903664,1728147141352,-500.0,0.00041232,120]
[339903665,1728147141365,-500.0,0.00041232,120]
[339903666,1728147141376,-1285.68,0.00041232,120]
[339903667,1728147141387,-503.25,0.00041232,120]
[339903668,1728147141396,-502.34549007,0.00041232,120]
[339903669,1728147141406,-500.0,0.00041232,120]
[339903670,1728147141416,-500.0,0.00041232,120]
[339903671,1728147141425,-500.0,0.00041232,120]
[339903672,1728147141435,-938.91,0.00041232,120]
[339903673,1728147141445,-500.0,0.00041232,120]
[339903674,1728147141454,-293.5,0.00041232,120]
[339903675,1728147141464,-1214.24,0.00041232,120]
[339903676,1728147141473,-669.13,0.00041232,120]
[339903677,1728147141483,-950.76,0.00041232,120]
[339903678,1728147141493,-1555.77,0.00041232,120]
[339903679,1728147141503,-500.0,0.00041232,120]
[339903680,1728147141514,-1046.87,0.00041232,120]
[339903681,1728147141524,-500.0,0.00041232,120]
[339903682,1728147141533,-1000.0,0.00041232,120]
[339903683,1728147141543,-766.5,0.00041232,120]
[339903684,1728147141554,-1076.33,0.00041232,120]
[339903685,1728147141564,-500.0,0.00041232,120]
[339903686,1728147141574,-500.0,0.00041232,120]
[339903687,1728147141585,-500.0,0.00041232,120]
[339903688,1728147141595,-500.0,0.00041232,120]
[339903689,1728147141605,-773.6,0.00041232,120]
[339903690,1728147141615,-956.46,0.00041232,120]
[339903691,1728147141625,-500.0,0.00041232,120]
[339903692,1728147141636,-559.84456756,0.00041232,120]
[339903693,1728147141646,-500.0,0.00041232,120]
[339903694,1728147141657,-500.0,0.00041232,120]
[339903695,1728147141667,-500.0,0.00041232,120]
[339903696,1728147141677,-1442.35,0.00041232,120]
[339903697,1728147141687,-1211.84,0.00041232,120]
[339903698,1728147141696,-500.0,0.00041232,120]
[339903699,1728147141706,-658.69,0.00041232,120]
[339903700,1728147141716,-1361.72,0.00041232,24]
[339903701,1728147141726,-500.0,0.00041232,120]
[339903702,1728147141736,-1120.5,0.00041232,120]
[339903703,1728147141746,-500.0,0.00041232,120]
[339903704,1728147141756,-510.93143269,0.00041232,120]
[339903705,1728147141767,-500.0,0.00041232,120]
[339903706,1728147141777,-1128.3,0.00041232,120]
[339903707,1728147141787,-500.0,0.00041232,120]
[339903708,1728147141797,-500.0,0.00041232,120]
[339903709,1728147141807,-500.0,0.00041232,120]
[339903710,1728147141817,-627.25,0.00041232,120]
[339903711,1728147141828,-723.77,0.00041232,120]
[339903712,1728147141837,-500.0,0.00041232,120]
[339903713,1728147141846,-500.0,0.00041232,120]
[339903714,1728147141856,-1143.9,0.00041232,120]
[339903715,1728147141867,-502.75,0.00041232,120]
[339903716,1728147141877,-500.0,0.00041232,120]
[339903717,1728147141887,-1054.07,0.00041232,120]
[339903718,1728147141897,-1458.38,0.00041232,120]
[339903719,1728147141907,-680.05,0.00041232,120]
[339903720,1728147141917,-2308.66,0.00041232,120]
[339903721,1728147141927,-500.0,0.00041232,120]
[339903722,1728147141937,-526.17,0.00041232,120]
[339903723,1728147141946,-958.76,0.00041232,120]
[339903724,1728147141955,-500.0,0.00041232,120]
[339903725,1728147141965,-521.35,0.00041232,120]
[339903726,1728147141974,-772.75,0.00041232,120]
[339903727,1728147141984,-957.22,0.00041232,120]
[339903728,1728147141994,-1182.56,0.00041232,120]
[339903729,1728147142003,-658.49,0.00041232,120]
[339903730,1728147142014,-500.0,0.00041232,120]
[339903731,1728147142023,-503.29140207,0.00041232,120]
[339903732,1728147142032,-500.0,0.00041232,120]
[339903733,1728147142042,-500.0,0.00041232,120]
[339903734,1728147142051,-764.47,0.00041232,120]
[339903735,1728147142061,-500.0,0.00041232,120]
[339903736,1728147142071,-500.0,0.00041232,120]
[339903737,1728147142082,-500.0,0.00041232,120]
[339903738,1728147142092,-1230.05,0.00041232,120]
[339903739,1728147142102,-500.0,0.00041232,120]
[339903740,1728147142112,-500.0,0.00041232,120]
[339903741,1728147142123,-872.43,0.00041232,120]
[339903742,1728147142133,-500.0,0.00041232,120]
[339903743,1728147142143,-611.65,0.00041232,120]
[339903744,1728147142154,-500.0,0.00041232,120]
[339903745,1728147142164,-842.7,0.00041232,120]
[339903746,1728147142174,-500.0,0.00041232,120]
[339903747,1728147142184,-500.0,0.00041232,120]
[339903748,1728147142194,-471.38599621,0.00041232,120]
[339903749,1728147142205,-821.45,0.00041232,120]
[339903750,1728147142215,-1020.54,0.00041232,120]
[339903751,1728147142225,-500.0,0.00041232,120]
[339903752,1728147142235,-500.0,0.00041232,120]
[339903753,1728147142245,-508.95,0.00041232,120]